bitfinex-derivatives/quotes_ETHF0:USTF0_20250602
["timestamp","ask_amount","ask_price","bid_price","bid_amount"]
[1748875688674,3.2078,2524.4,2524.1,0.57110824]
[1748875688879,3.99976,2524.4,2524.1,0.57110824]
[1748875689386,3.2078,2524.4,2523.9,2.5677]
[1748875689574,3.2078,2524.0,2523.9,3.35981]
[1748875690090,3.2078,2524.3,2524.1,0.79202]
[1748875690279,3.2078,2524.3,2524.1,1.36313824]
[1748875690799,3.2078,2524.3,2524.1,0.57110824]
[1748875691081,3.2078,2524.3,2524.1,1.36314824]
[1748875691479,3.2078,2524.3,2524.1,0.57110824]
[1748875691680,3.2078,2524.3,2524.2,0.79201]
[1748875692280,3.2078,2524.3,2524.1,0.79203]
[1748875692488,3.2078,2524.3,2524.1,0.57110824]
[1748875692689,3.2078,2524.3,2523.9,2.5677]
[1748875692883,3.2078,2524.0,2523.9,3.35981]
[1748875693496,3.2078,2524.0,2523.9,3.93091824]
[1748875693704,3.2078,2524.3,2524.2,0.79201]
[1748875694800,3.2078,2524.3,2524.2,1.36311824]
[1748875695234,3.21164422,2524.7,2524.6,0.79189]
[1748875695521,0.00384422,2524.7,2524.6,4.57079824]
[1748875695735,0.00384422,2524.7,2524.6,6.02523327]
[1748875696142,0.00384422,2524.7,2524.6,11.63089824]
[1748875696883,0.00384422,2524.7,2524.6,5.84489824]
[1748875697084,0.00384422,2524.7,2524.6,2.63709824]
[1748875698784,0.00384422,2524.7,2524.6,2.06599]
[1748875699288,0.00384422,2524.7,2524.5,1.3568]
[1748875699701,25.04872,2524.6,2524.3,0.79198]
[1748875699815,24.2568,2524.6,2524.3,0.79197]
[1748875699989,24.2568,2524.6,2524.5,0.79192]
[1748875700493,24.2568,2524.6,2524.2,1.2834]
[1748875700690,24.2568,2524.6,2524.5,0.79192]
[1748875700903,0.00384422,2524.7,2524.6,0.79189]
[1748875701588,0.00384422,2524.7,2524.1,4.5614]
[1748875701589,5.00384422,2524.7,2524.2,5.785]
[1748875701890,3.2078,2524.5,2524.2,1.3452]
[1748875702088,0.536,2524.4,2524.2,1.3452]
[1748875702286,0.536,2524.4,2523.7,5.79094519]
[1748875702546,3.2078,2524.0,2523.7,0.00594519]
[1748875702789,21.005,2523.9,2523.8,0.79212]
[1748875703001,21.005,2523.9,2523.8,2.13732]
[1748875703388,3.2078,2524.0,2523.9,0.79211]
[1748875703607,24.1988,2524.0,2523.9,0.79211]
[1748875704411,24.1988,2524.0,2523.8,1.3452]
[1748875704791,0.79214,2523.8,2523.7,0.00594519]
[1748875704909,1.98043,2523.8,2523.2,1.3023]
[1748875705110,1.0013,2523.9,2522.6,3.9852]
[1748875705111,3.2078,2523.3,2522.6,3.9852]
[1748875705284,3.2078,2523.0,2522.9,0.79242]
[1748875705692,3.2078,2523.1,2522.9,0.79241]
[1748875705993,3.2078,2523.1,2522.8,1.3023]
[1748875705994,3.2078,2523.1,2523.0,0.79239]
[1748875706496,3.2078,2523.1,2522.8,1.3023]
[1748875706699,3.2078,2523.1,2523.0,0.79239]
[1748875707395,8.2078,2523.1,2522.7,0.00594519]
[1748875707601,4.00025,2522.8,2522.7,0.00594519]
[1748875708001,3.2078,2522.8,2522.7,0.00594519]
[1748875708295,10.57427438,2522.8,2522.7,0.00594519]
[1748875708493,9.53685,2522.8,2522.7,0.00594519]
[1748875708683,11.10970273,2522.8,2522.7,0.00594519]
[1748875708879,8.7444,2522.8,2522.7,0.00594519]
[1748875709087,3.7444,2522.8,2522.7,0.00594519]
[1748875709289,5.31725273,2522.8,2522.7,0.79843519]
[1748875709483,3.2078,2522.8,2522.7,0.79843519]
[1748875709698,3.2078,2522.8,2522.7,0.00594519]
[1748875709887,4.00026,2522.8,2522.7,0.00594519]
[1748875710424,4.53756,2522.8,2522.7,0.00594519]
[1748875710900,9.53756,2522.8,2522.7,0.00594519]
[1748875712296,8.7451,2522.8,2522.7,0.79843519]
[1748875712512,24.0378,2522.8,2522.7,0.79843519]
[1748875712698,24.0378,2522.8,2522.7,0.00594519]
[1748875712898,24.83026,2522.8,2522.7,0.00594519]
[1748875713100,24.0378,2522.8,2522.7,0.00594519]
[1748875713313,24.0378,2522.8,2522.7,0.79843519]
[1748875713694,3.2078,2522.8,2522.7,0.79843519]
[1748875715299,3.2078,2522.8,2522.7,1.36954343]
[1748875715701,3.2078,2522.8,2522.7,2.63464343]
[1748875717301,3.2078,2522.8,2522.7,1.84215343]
[1748875717532,4.00026,2522.8,2522.7,1.27104519]
[1748875717693,4.59476,2522.8,2522.7,1.27104519]
[1748875717927,9.59476,2522.8,2522.7,0.00594519]
[1748875718284,8.8023,2522.8,2522.2,1.2651]
[1748875718463,0.79262,2522.3,2522.2,1.2651]
[1748875718592,23.9238,2522.4,2521.9,2.16403]
[1748875718780,0.79268,2522.1,2522.0,1.2862]
[1748875718980,0.79274,2522.0,2521.5,1.3713]
[1748875719192,3.21374519,2522.0,2521.5,2.66344519]
[1748875719318,3.21374519,2522.0,2521.9,0.79274]
[1748875720009,0.00594519,2522.0,2521.9,1.36384824]
[1748875722005,0.00594519,2522.0,2521.9,6.36384824]
[1748875722218,3.2078,2522.6,2522.5,0.79255]
[1748875722679,3.2078,2522.6,2522.2,2.6123]
[1748875722815,3.2078,2522.6,2522.4,1.2771]
[1748875723203,3.2078,2522.6,2522.4,2.06968]
[1748875723420,3.2078,2522.6,2522.5,0.79255]
[1748875723814,3.2078,2522.6,2522.5,2.64075824]
[1748875724010,3.2078,2522.6,2522.5,2.06965]
[1748875725110,3.2078,2522.6,2522.5,2.06966]
[1748875725607,3.2078,2522.6,2522.5,1.2771]
[1748875725821,3.2078,2522.6,2522.5,2.06966]
[1748875726419,4.00033,2522.6,2522.5,1.2771]
[1748875726614,4.00033,2522.6,2522.5,2.06966]
[1748875726615,3.2078,2522.6,2522.5,2.06966]
[1748875727810,4.00035,2522.6,2522.2,1.3352]
[1748875728010,3.2078,2522.6,2522.5,0.79256]
[1748875728620,3.2078,2522.6,2522.3,1.3788]
[1748875728817,3.2078,2522.6,2522.5,0.79256]
[1748875729222,4.00033,2522.6,2522.5,0.79256]
[1748875729426,0.7926,2522.4,2522.0,6.9581]
[1748875729654,4.00046,2522.2,2522.1,1.3788]
[1748875729822,0.79269,2522.1,2522.0,0.79271]
[1748875730116,0.79269,2522.1,2521.9,0.79273]
[1748875730316,0.79269,2522.1,2522.0,1.3788]
[1748875730619,6.57285273,2522.1,2521.5,6.88564519]
[1748875730804,3.2078,2521.7,2521.6,2.17165]
[1748875731517,3.2078,2521.7,2521.6,0.79285]
[1748875731712,4.78065273,2521.7,2521.6,0.79285]
[1748875731963,4.78065273,2521.7,2521.6,1.3438]
[1748875732117,4.78065273,2521.7,2521.6,2.13665]
[1748875732319,25.26165273,2521.7,2521.6,2.13665]
[1748875733320,25.26165273,2521.7,2521.6,0.79285]
[1748875733522,25.26165273,2521.7,2521.6,2.13665]
[1748875733723,23.6888,2521.7,2521.6,2.13665]
[1748875734613,26.03983242,2521.7,2521.6,2.13665]
[1748875735015,26.83267242,2521.7,2521.5,0.00594519]
[1748875735326,5.55883242,2521.7,2521.6,0.79285]
[1748875735509,25.98783242,2521.7,2521.6,2.14725]
[1748875735824,25.98383242,2521.7,2521.6,2.14725]
[1748875736515,26.77665242,2521.7,2521.6,1.3544]
[1748875736728,27.37145242,2521.7,2521.6,2.14725]
[1748875737725,27.37145242,2521.7,2521.6,1.3544]
[1748875737919,27.37145242,2521.7,2521.6,2.14726]
[1748875738518,27.37145242,2521.7,2521.6,1.3544]
[1748875738715,27.37145242,2521.7,2521.6,2.14726]
[1748875739131,0.79286,2521.6,2521.5,0.79882519]
[1748875739319,2.37061264,2521.6,2521.5,0.79882519]
[1748875739534,1.57775264,2521.6,2521.5,0.79882519]
[1748875740346,1.57775264,2521.6,2521.5,1.36993343]
[1748875740643,2.17255264,2521.7,2521.6,0.79286]
[1748875740840,0.5948,2521.7,2521.6,2.78226824]
[1748875741378,2.35103242,2522.2,2522.1,0.7927]
[1748875741379,1.57775264,2522.2,2522.1,0.7927]
[1748875741616,3.2078,2522.3,2522.2,0.79267]
[1748875741847,3.2078,2522.3,2521.9,1.4183]
[1748875741848,4.78555264,2522.3,2521.9,1.4183]
[1748875742037,4.78489145,2522.3,2522.0,0.57110824]
[1748875742237,1.57709145,2522.2,2522.1,1.4183]
[1748875742517,1.57709145,2522.2,2522.1,2.21101]
[1748875743139,21.89209145,2522.2,2522.1,2.21101]
[1748875743494,1.98187,2522.0,2521.5,0.00594519]
[1748875743645,4.00068,2521.6,2521.5,0.00594519]
[1748875743864,5.19006,2521.6,2520.9,0.79308]
[1748875744171,3.2078,2521.0,2520.9,0.7931]
[1748875744334,25.12143695,2521.0,2520.9,0.7931]
[1748875744559,25.91450695,2521.0,2520.6,1.3271]
[1748875744831,3.2078,2520.7,2520.6,2.12029]
[1748875745228,3.2078,2520.7,2520.6,2.69139824]
[1748875745921,20.893,2520.8,2520.7,0.79316]
[1748875746134,20.893,2520.8,2520.7,1.36426824]
[1748875746438,0.00594519,2521.1,2521.0,0.79307]
[1748875746568,5.55883242,2521.5,2521.4,0.79294]
[1748875746744,3.2078,2521.5,2521.4,1.36404824]
[1748875748016,0.00594519,2521.7,2521.6,0.79287]
[1748875748266,0.00594519,2521.7,2521.6,4.57177824]
[1748875748503,0.00594519,2521.7,2521.6,9.57177824]
[1748875748664,4.78543695,2522.2,2522.1,0.79271]
[1748875748843,23.4768,2522.2,2522.1,1.36381824]
[1748875749120,25.04943695,2522.2,2522.1,0.79271]
[1748875749827,23.4548,2522.2,2522.1,0.79271]
[1748875750417,25.03243695,2522.2,2521.9,0.00594519]
[1748875750620,1.57763695,2522.1,2521.9,0.00594519]
[1748875750835,1.57763695,2522.1,2522.0,0.79275]
[1748875751034,1.57763695,2522.1,2522.0,1.36385824]
[1748875751227,25.03543695,2522.2,2522.1,0.79271]
[1748875751452,25.03543695,2522.2,2522.1,1.36381824]
[1748875751622,25.03543695,2522.2,2522.1,0.79271]
[1748875751956,25.03543695,2522.2,2522.1,1.36381824]
[1748875752142,23.4578,2522.2,2522.1,1.36381824]
[1748875752522,23.4418,2522.2,2522.1,1.36381824]
[1748875754430,25.01943695,2522.2,2521.9,0.00594519]
[1748875754667,0.79274,2522.0,2521.9,0.00594519]
[1748875754847,0.79281,2521.8,2521.6,0.79287]
[1748875755026,1.57802704,2521.7,2521.5,1.4988]
[1748875755365,1.57802704,2521.7,2521.6,1.36397824]
[1748875755576,1.57802704,2521.9,2521.8,0.79281]
[1748875755750,1.57802704,2522.0,2521.9,0.79278]
[1748875755921,1.57802704,2522.1,2522.0,0.79274]
[1748875756121,1.57802704,2522.1,2522.0,1.36384824]
[1748875756721,1.57802704,2522.1,2521.9,0.79276]
[1748875756923,1.57802704,2522.0,2521.9,0.79276]
[1748875758629,2.36704057,2522.1,2522.0,0.79276]
[1748875760225,3.15978057,2522.1,2522.0,0.79276]
[1748875760422,3.15978057,2522.1,2521.9,0.79277]
[1748875760423,0.79276,2522.0,2521.9,0.79277]
[1748875760624,0.79278,2522.0,2521.9,0.79279]
[1748875760836,2.36704057,2522.0,2521.9,0.7928]
[1748875761037,3.15980057,2522.0,2521.9,0.7928]
[1748875762340,0.79286,2521.7,2521.6,0.79882519]
[1748875762636,6.36769057,2521.8,2521.7,0.79286]
[1748875762836,7.83179057,2521.8,2521.7,0.79286]
[1748875763030,5.57484057,2521.8,2521.7,0.79286]
[1748875763385,21.7374938,2521.8,2521.7,1.36396824]
[1748875763556,24.9452938,2521.8,2521.6,0.00594519]
[1748875763742,23.3658,2521.8,2521.7,0.79286]
[1748875764031,26.52566057,2521.8,2521.7,0.79286]
[1748875764228,25.73284057,2521.8,2521.7,0.79286]
[1748875764765,25.73284057,2521.8,2521.6,0.79882519]
[1748875764951,2.36968118,2521.7,2521.6,0.79883519]
[1748875765231,24.94545508,2521.8,2521.7,1.36396824]
[1748875765437,23.3658,2521.8,2521.7,2.76846824]
[1748875767245,3.2078,2521.8,2521.7,2.76846824]
[1748875767456,1.57965508,2521.9,2521.8,0.79282]
[1748875767631,1.57965508,2521.9,2521.8,2.80662824]
[1748875767924,0.79285,2521.7,2521.6,0.00594519]
[1748875768099,20.158,2521.7,2521.6,0.00594519]
[1748875768442,20.95084,2521.7,2521.6,0.00594519]
[1748875769150,20.95084,2521.7,2521.6,3.00594519]
[1748875769348,1.4089,2521.8,2521.7,0.79284]
[1748875769568,21.6449,2521.8,2521.6,3.00594519]
[1748875769754,2.37011714,2521.7,2521.6,3.00594519]
[1748875770034,0.79284,2521.7,2521.6,3.00594519]
[1748875770463,2.29794,2521.7,2521.6,3.00594519]
[1748875770651,4.66811013,2521.7,2521.6,3.00594519]
[1748875771051,2.29794,2521.7,2521.6,3.00594519]
[1748875771847,1.5051,2521.7,2521.6,3.79881519]
[1748875772037,3.2078,2521.9,2521.8,0.79281]
[1748875772350,25.7727793,2521.9,2521.8,0.79281]
[1748875772556,5.5777793,2521.9,2521.8,0.79281]
[1748875772835,25.7687793,2521.9,2521.8,0.79281]
[1748875773037,2.3699793,2521.9,2521.8,2.24851]
[1748875773430,2.3699793,2522.0,2521.9,0.79276]
[1748875773720,2.3699793,2522.1,2522.0,0.79273]
[1748875773726,1.57985335,2522.1,2522.0,0.79273]
[1748875774160,3.2078,2522.3,2522.2,0.79267]
[1748875774674,1.58369757,2522.4,2522.3,0.79263]
[1748875774845,0.00384422,2522.4,2522.3,2.19093]
[1748875775545,1.57985335,2522.5,2522.4,0.79261]
[1748875775770,2.3699793,2522.7,2522.6,0.79254]
[1748875775772,4.78765335,2523.0,2522.6,1.98136]
[1748875776058,4.78765335,2523.0,2522.9,0.79246]
[1748875776708,2.37592449,2523.2,2523.1,0.79239]
[1748875776857,1.58579854,2523.2,2523.1,0.79239]
[1748875777040,0.00594519,2523.2,2523.1,0.79239]
[1748875778688,0.00594519,2523.2,2523.1,2.30659]
[1748875779280,0.00594519,2523.2,2523.1,1.5142]
[1748875779451,0.79830519,2523.2,2523.1,1.5142]
[1748875779644,2.37815854,2523.2,2522.9,0.00594519]
[1748875779954,4.6792,2523.1,2522.9,0.00594519]
[1748875780151,4.6792,2523.1,2522.9,0.79837519]
[1748875780445,4.6792,2523.1,2523.0,0.79243]
[1748875781052,3.2078,2523.1,2523.0,0.79243]
[1748875781349,0.00594519,2523.2,2523.1,0.79239]
[1748875781545,20.15794519,2523.2,2523.1,0.79239]
[1748875786350,0.00594519,2523.2,2523.1,0.79239]
[1748875786647,20.15494519,2523.2,2523.1,0.79239]
[1748875786965,20.15494519,2523.2,2523.0,1.5128]
[1748875786966,20.94730519,2523.2,2523.0,1.5128]
[1748875787255,20.15494519,2523.2,2523.1,0.79239]
[1748875788866,0.00594519,2523.2,2523.1,0.79239]
[1748875791593,3.2078,2523.7,2523.6,0.79224]
[1748875791769,23.3538,2523.7,2523.6,0.79224]
[1748875792066,23.3528,2523.7,2523.6,0.79224]
[1748875792245,3.2078,2523.7,2523.6,0.79224]
[1748875792450,3.99991,2524.0,2523.9,0.79214]
[1748875792647,25.71584594,2524.0,2523.9,0.79214]
[1748875792853,24.7937,2524.0,2523.9,0.79214]
[1748875793260,26.36563594,2524.0,2523.9,0.79214]
[1748875793453,25.58583,2524.0,2523.7,1.3762]
[1748875793656,4.6497,2524.0,2523.9,0.79214]
[1748875793966,24.7937,2524.0,2523.9,0.79214]
[1748875796163,4.6497,2524.0,2523.9,0.79214]
[1748875796360,3.2078,2524.0,2523.9,0.79214]
[1748875796552,4.6949,2524.3,2524.2,0.79205]
[1748875796751,24.8349,2524.3,2524.2,0.79205]
[1748875797152,24.8349,2524.3,2524.0,1.5017]
[1748875797352,24.8349,2524.3,2524.2,0.79205]
[1748875797557,25.62692,2524.3,2524.2,0.79205]
[1748875797757,24.8349,2524.3,2524.2,0.79205]
[1748875798148,4.6949,2524.3,2524.2,0.79205]
[1748875798359,3.2078,2524.3,2524.2,0.79205]
[1748875800659,0.79206,2524.2,2524.1,0.79206]
[1748875800856,1.98013,2524.2,2523.7,1.4823]
[1748875801058,3.2078,2523.9,2523.7,1.4823]
[1748875801257,3.2078,2523.9,2523.8,0.79217]
[1748875802163,0.79211,2524.0,2523.9,0.79211]
[1748875802359,1.4539,2524.1,2523.4,7.07975]
[1748875802566,3.2078,2523.8,2523.4,5.099]
[1748875802761,3.2078,2523.5,2523.0,2.8824]
[1748875802958,20.133,2523.4,2523.3,0.79233]
[1748875804165,3.2078,2523.5,2523.4,0.7923]
[1748875804368,24.91578005,2523.5,2523.4,0.7923]
[1748875804763,24.91770584,2523.5,2523.4,0.7923]
[1748875805902,23.3398,2523.5,2523.4,0.7923]
[1748875806235,3.2078,2523.5,2523.4,0.7923]
[1748875806297,23.3398,2523.5,2523.4,0.7923]
[1748875806464,24.91796121,2523.5,2523.4,0.7923]
[1748875806661,20.132,2523.5,2523.4,0.7923]
[1748875807971,21.71016121,2523.5,2523.4,0.7923]
[1748875808873,21.71016121,2523.5,2523.2,3.4626]
[1748875808874,0.79233,2523.3,2523.2,1.4817]
[1748875809109,0.79237,2523.2,2523.0,7.9443]
[1748875809253,5.57829121,2523.4,2523.2,0.79233]
[1748875809449,1.57816121,2523.3,2523.0,7.9443]
[1748875809630,0.79243,2523.0,2522.9,0.00594519]
[1748875809887,2.37059121,2523.0,2522.9,0.00594519]
[1748875810148,0.79243,2523.0,2522.9,0.00594519]
[1748875810349,3.15640007,2523.0,2522.9,0.79840519]
[1748875810487,3.15640007,2523.0,2522.9,0.00594519]
[1748875810620,2.36397007,2523.0,2522.9,0.79840519]
[1748875810767,23.28540007,2523.0,2522.9,0.79840519]
[1748875810985,23.28540007,2523.0,2522.9,0.00594519]
[1748875812260,22.49297007,2523.0,2522.9,0.00594519]
[1748875812503,20.92143,2523.0,2522.9,0.79840519]
[1748875812758,20.92143,2523.0,2522.9,0.00594519]
[1748875812961,20.129,2523.0,2522.9,0.00594519]
[1748875813167,20.127,2523.0,2522.9,0.00594519]
[1748875813373,20.127,2523.0,2522.9,0.79840519]
[1748875813768,5.57177007,2523.1,2523.0,0.79243]
[1748875814070,20.128,2523.1,2522.9,0.00594519]
[1748875814274,1.57777255,2523.3,2523.2,0.79236]
[1748875814475,3.05787255,2523.3,2523.2,0.79236]
[1748875814687,1.57777255,2523.3,2523.2,0.79236]
[1748875814882,20.127,2523.3,2523.2,0.79236]
[1748875815277,20.127,2523.3,2523.2,2.26606]
[1748875815964,1.57777255,2523.4,2523.3,0.79233]
[1748875816163,20.126,2523.4,2523.3,0.79233]
[1748875816363,21.70377255,2523.4,2523.3,0.79233]
[1748875816576,21.70377255,2523.4,2523.1,1.4531]
[1748875816777,21.70377255,2523.4,2523.2,0.79236]
[1748875816778,4.6915,2523.3,2523.2,0.79236]
[1748875817085,20.125,2523.3,2523.2,0.79236]
[1748875817271,20.125,2523.3,2523.2,3.74086]
[1748875817775,21.70177255,2523.5,2523.4,0.7923]
[1748875818875,1.57777255,2523.5,2523.4,0.7923]
[1748875819678,21.70077255,2523.6,2523.5,0.79227]
[1748875819873,22.49301255,2523.6,2523.5,0.79227]
[1748875820067,20.91524,2523.6,2523.5,0.79227]
[1748875820287,1.57797984,2523.8,2523.5,1.98065]
[1748875820462,21.69997984,2523.8,2523.7,0.79221]
[1748875820744,0.79222,2523.7,2523.6,0.79224]
[1748875820868,23.3298,2523.8,2523.7,0.79221]
[1748875821370,24.90675202,2523.8,2523.7,0.79221]
[1748875821584,4.78575202,2523.8,2523.7,0.79221]
[1748875822071,4.6732,2523.8,2523.7,0.79221]
[1748875822271,6.25115202,2523.8,2523.7,0.79221]
[1748875822577,4.6732,2523.8,2523.7,0.79221]
[1748875822908,22.49112202,2523.9,2523.7,0.79221]
[1748875822909,1.57795202,2523.9,2523.8,0.79218]
[1748875823102,1.57795202,2524.1,2524.0,0.79211]
[1748875823280,1.57795202,2524.2,2524.1,0.79208]
[1748875823669,1.57795202,2524.4,2524.3,0.79202]
[1748875823992,2.36397007,2524.6,2524.3,0.79202]
[1748875823993,21.69495202,2524.6,2524.5,0.79195]
[1748875824305,1.57795202,2524.6,2524.5,0.79195]
[1748875824468,1.57795202,2524.6,2524.4,3.65487]
[1748875824672,0.79195,2524.5,2524.4,1.4647]
[1748875824902,0.79199,2524.4,2524.3,0.00594519]
[1748875825113,7.05384202,2524.4,2524.3,0.00594519]
[1748875825378,10.47589,2524.4,2524.3,0.00594519]
[1748875826377,5.47589,2524.4,2524.3,0.00594519]
[1748875826583,1.98,2524.3,2523.8,1.5358]
[1748875826819,4.78431148,2524.0,2523.8,2.32792]
[1748875826973,20.112,2523.9,2523.8,1.5358]
[1748875827182,20.112,2523.9,2523.8,2.32793]
[1748875827375,20.112,2523.9,2523.8,1.5358]
[1748875827674,21.5881,2523.9,2523.8,1.5358]
[1748875827892,4.78431148,2524.0,2523.9,0.79211]
[1748875828069,24.89531148,2524.0,2523.9,0.79211]
[1748875828275,24.89531148,2524.0,2523.9,2.31381]
[1748875828471,25.68740148,2524.0,2523.8,1.5358]
[1748875828778,27.16340148,2524.0,2523.8,1.5358]
[1748875829092,27.16341148,2524.0,2523.8,2.32793]
[1748875829277,26.37131148,2524.0,2523.8,2.32793]
[1748875829581,27.16339148,2524.0,2523.8,1.5358]
[1748875829777,26.37131148,2524.0,2523.8,1.5358]
[1748875830093,24.89231148,2524.0,2523.8,1.5358]
[1748875830392,4.78431148,2524.0,2523.9,1.5217]
[1748875830782,5.57638148,2524.0,2523.8,1.5358]
[1748875831179,5.57638148,2524.0,2523.8,2.32794]
[1748875831681,0.7921,2523.9,2523.8,1.5358]
[1748875831996,1.57651148,2523.9,2523.8,1.5358]
[1748875832204,2.36861148,2523.9,2523.8,1.5358]
[1748875832383,1.57651148,2523.9,2523.8,2.32793]
[1748875833207,20.105,2523.9,2523.8,3.79743]
[1748875833452,4.78431148,2524.0,2523.9,0.7921]
[1748875833747,0.00594519,2524.1,2524.0,0.79207]
[1748875834001,0.00594519,2524.1,2524.0,5.79207]
[1748875834369,0.79799519,2524.1,2523.9,5.084]
[1748875834514,0.79209,2524.0,2523.8,1.5358]
[1748875834781,1.58271731,2524.1,2523.8,1.5358]
[1748875834782,0.7921,2523.9,2523.8,1.5358]
[1748875834916,3.86187212,2523.9,2523.8,1.5358]
[1748875835074,3.06977212,2523.9,2523.8,1.5358]
[1748875835301,3.06977212,2523.9,2523.8,2.32793]
[1748875836189,4.7008,2523.9,2523.8,1.5358]
[1748875836379,1.493,2523.9,2523.8,1.5358]
[1748875836600,1.493,2523.9,2523.8,2.32793]
[1748875836793,5.4929,2523.9,2523.8,1.5358]
[1748875837078,1.493,2523.9,2523.8,2.32793]
[1748875837286,1.493,2523.9,2523.8,1.5358]
[1748875837481,2.2851,2523.9,2523.8,1.5358]
[1748875837682,1.493,2523.9,2523.8,2.32793]
[1748875838292,1.57677212,2524.0,2523.8,1.5358]
[1748875838492,0.7921,2523.9,2523.8,1.5358]
[1748875838893,0.79213,2523.8,2523.7,1.4647]
[1748875839278,0.79216,2523.7,2523.6,0.79813519]
[1748875839483,2.32905,2523.8,2523.6,0.00594519]
[1748875839824,0.79216,2523.7,2523.6,0.00594519]
[1748875840029,6.12892723,2523.7,2523.6,0.00594519]
[1748875840364,0.79226,2523.4,2523.3,5.084]
[1748875840488,24.09706,2523.4,2523.3,5.084]
[1748875840754,25.28548,2523.4,2522.5,41.92635]
[1748875840946,3.2078,2523.1,2522.7,6.5441]
[1748875841151,0.79243,2522.9,2522.7,7.33656]
[1748875841486,3.05461728,2523.0,2522.7,6.5441]
[1748875841688,1.4768,2522.9,2522.8,0.79242]
[1748875841991,3.05461728,2522.9,2522.8,0.79242]
[1748875842192,1.4768,2522.9,2522.8,0.79242]
[1748875842412,3.05461728,2522.9,2522.8,0.79242]
[1748875843091,1.4768,2522.9,2522.8,0.79242]
[1748875844297,1.57781728,2523.0,2522.9,0.79242]
[1748875844523,1.57781728,2523.0,2522.7,6.5441]
[1748875844524,4.78561728,2523.1,2523.0,0.79238]
[1748875844788,24.87961728,2523.1,2523.0,0.79238]
[1748875845091,25.67199728,2523.1,2522.8,2.23043]
[1748875845304,0.79239,2523.0,2522.8,2.23043]
[1748875845499,20.093,2523.0,2522.8,1.438]
[1748875845687,3.2078,2523.1,2523.0,0.79238]
[1748875845889,4.00016,2523.1,2522.8,1.438]
[1748875846198,5.46076,2523.1,2522.8,2.23043]
[1748875846705,0.79239,2523.0,2522.8,1.438]
[1748875846898,1.5041,2523.0,2522.9,0.79242]
[1748875847104,1.5041,2523.0,2522.8,1.438]
[1748875847302,1.5041,2523.0,2522.7,2.25256]
[1748875847496,1.5041,2523.0,2522.7,1.4601]
[1748875847700,0.79244,2522.9,2522.7,1.4601]
[1748875848094,3.87431728,2523.0,2522.7,2.25257]
[1748875848397,3.08191728,2523.0,2522.8,0.79245]
[1748875848592,3.87430728,2523.0,2522.7,2.25257]
[1748875848794,1.5041,2523.0,2522.9,0.79242]
[1748875849093,4.78561728,2523.1,2523.0,0.79238]
[1748875849296,1.57781728,2523.1,2523.0,0.79238]
[1748875849551,1.57781728,2523.2,2523.1,0.79235]
[1748875849700,20.09,2523.2,2523.0,1.5199]
[1748875849894,1.57781728,2523.3,2522.8,7.06612]
[1748875850096,20.09,2523.2,2523.1,0.79233]
[1748875850299,0.79236,2523.1,2522.9,0.7924]
[1748875850592,22.1049,2523.2,2522.7,1.4601]
[1748875850892,24.47506728,2523.2,2522.9,0.7924]
[1748875851091,23.68271728,2523.2,2522.8,2.31233]
[1748875851289,0.79241,2523.0,2522.8,1.5199]
[1748875851599,0.79242,2522.9,2522.8,1.5199]
[1748875852005,0.79242,2522.9,2522.7,2.25256]
[1748875852500,3.79072728,2523.0,2522.8,0.79245]
[1748875852791,1.445,2522.9,2522.8,0.79245]
[1748875853206,5.44522,2522.9,2522.7,2.25256]
[1748875853445,0.79251,2522.6,2522.5,0.00594519]
[1748875853701,5.57812728,2522.6,2522.5,0.00594519]
[1748875853922,9.00031,2522.6,2522.5,0.00594519]
[1748875854112,0.79265,2522.2,2522.1,0.79267]
[1748875854406,20.085,2522.2,2522.1,0.79267]
[1748875856001,20.085,2522.2,2522.0,0.79269]
[1748875856393,20.085,2522.2,2521.9,4.35124519]
[1748875856588,20.085,2522.2,2522.0,0.79269]
[1748875856812,20.085,2522.2,2522.0,2.25388]
[1748875857002,20.085,2522.2,2522.1,0.79267]
[1748875857704,20.085,2522.2,2522.0,2.25387]
[1748875857991,20.87764,2522.2,2522.0,2.25387]
[1748875858389,0.79267,2522.1,2522.0,1.4612]
[1748875858591,20.87765,2522.2,2522.0,1.4612]
[1748875858889,20.87765,2522.2,2522.0,2.25389]
[1748875859497,1.445,2522.4,2522.0,1.4612]
[1748875859711,20.082,2522.1,2522.0,2.2539]
[1748875860894,1.57567296,2522.5,2522.4,0.79257]
[1748875861095,3.2078,2522.6,2522.1,1.98167]
[1748875861096,4.78347296,2522.6,2522.5,0.79254]
[1748875861399,3.2078,2522.6,2522.4,0.79255]
[1748875861624,24.07932,2522.6,2522.4,0.79255]
[1748875861785,23.2868,2522.6,2522.2,1.434]
[1748875861998,23.2868,2522.6,2522.0,3.2078]
[1748875862196,0.79262,2522.3,2522.1,0.79266]
[1748875863193,0.79265,2522.2,2522.0,2.25599]
[1748875863492,0.79267,2522.1,2522.0,1.4633]
[1748875863853,0.79267,2522.1,2522.0,0.79269]
[1748875864007,0.7927,2522.0,2521.9,0.00594519]
[1748875864224,25.5611,2522.0,2521.9,0.00594519]
[1748875864919,32.13677296,2522.0,2521.9,0.00594519]
[1748875865129,0.79289,2521.4,2521.3,3.2078]
[1748875865413,20.86789,2521.4,2521.3,3.2078]
[1748875866307,0.79295,2521.2,2521.1,0.00594519]
[1748875867303,2.21664,2521.3,2521.1,0.79892519]
[1748875867501,1.4237,2521.3,2521.1,0.00594519]
[1748875867700,20.075,2521.2,2521.1,0.00594519]
[1748875867902,20.86795,2521.2,2521.1,0.00594519]
[1748875868394,20.075,2521.2,2521.1,0.00594519]
[1748875868808,20.86795,2521.2,2521.1,0.00594519]
[1748875869307,20.075,2521.2,2521.1,0.00594519]
[1748875869512,20.075,2521.2,2521.1,0.79892519]
[1748875869700,20.075,2521.2,2521.1,0.00594519]
[1748875869901,20.86795,2521.2,2521.1,0.00594519]
[1748875870602,22.4429553,2521.2,2521.1,0.00594519]
[1748875870822,22.39465,2521.2,2521.1,0.00594519]